Workbook

Sheet เป้าหมาย
B1: =TODAY() -> 2022-12-13 | C1: เป้าหมาย | J1: ออกกำลัง | K1: ควบคุมอาหาร
B2: วันที่เริ่มต้น | C2: บันทึกการควบคุมอาหารและการออกกำลังประจำวัน
B3: =วันที่เริ่มต้น+121 -> 2023-04-13 | C3: วิเคราะห์การควบคุมอาหาร
B4: วันที่สิ้นสุด
B5: 220.00
B6: น้ำหนักเริ่มต้น
B7: 180.00 | C7: การวิเคราะห์การออกกำลัง
B8: น้ำหนักสุดท้าย
B9: =น้ำหนักเริ่มต้น-น้ำหนักสุดท้าย -> 40
B10: เป้าหมายการลด
B11: =วันที่สิ้นสุด-วันที่เริ่มต้น -> 121
B12: วันที่จะลด
B13: =น้ำหนักเป้าหมาย/B11 -> 0.33
B14: การลดต่อวัน

Sheet ควบคุมอาหาร
B1: ควบคุมอาหาร | G1: เป้าหมาย | H1: ออกกำลัง
B2: =ชื่อเรื่องรอง -> บันทึกการควบคุมอาหารและการออกกำลังประจำวัน
B3: วันที่ | C3: เวลา | D3: คำอธิบาย | E3: แคลอรี่ | F3: คาร์โบไฮเดรต | G3: โปรตีน | H3: ไขมัน | I3: หมายเหตุ
B4: =วันที่เริ่มต้น -> 2022-12-13 | C4: 07:00:00 | D4: กาแฟ | E4: 1 | F4: 0 | G4: 0 | H4: 0 | I4: กาแฟช่วงเช้า
B5: =วันที่เริ่มต้น -> 2022-12-13 | C5: 08:00:00 | D5: ขนมปัง | E5: 10 | F5: 10 | G5: 2 | H5: 10 | I5: อาหารเช้า
B6: =วันที่เริ่มต้น -> 2022-12-13 | C6: 12:00:00 | D6: อาหารกลางวัน | E6: 283 | F6: 46 | G6: 18 | H6: 4 | I6: แซนด์วิชตุรกี
B7: =วันที่เริ่มต้น -> 2022-12-13 | C7: 19:00:00 | D7: อาหารเย็น | E7: 500 | F7: 42 | G7: 35 | H7: 25 | I7: เทเทอร์ทอตแคสเซอโรล
B8: =วันที่เริ่มต้น+1 -> 2022-12-14 | C8: 07:00:00 | D8: กาแฟ | E8: 1 | F8: 0 | G8: 0 | H8: 0 | I8: กาแฟช่วงเช้า
B9: =วันที่เริ่มต้น+1 -> 2022-12-14 | C9: 08:00:00 | D9: ขนมปังปิ้ง | E9: 10 | F9: 10 | G9: 2 | H9: 10 | I9: อาหารเช้า
B10: =วันที่เริ่มต้น+1 -> 2022-12-14 | C10: 12:00:00 | D10: อาหารกลางวัน | E10: 189 | F10: 26 | G10: 3 | H10: 8 | I10: แซนด์วิช
B11: =วันที่เริ่มต้น+1 -> 2022-12-14 | C11: 19:00:00 | D11: อาหารเย็น | E11: 477 | F11: 62 | G11: 14 | H11: 21 | I11: อาหารเย็น
B12: =วันที่เริ่มต้น+2 -> 2022-12-15 | C12: 07:00:00 | D12: กาแฟ | E12: 1 | F12: 0 | G12: 0 | H12: 0 | I12: กาแฟช่วงเช้า
B13: =วันที่เริ่มต้น+2 -> 2022-12-15 | C13: 08:00:00 | D13: ขนมปัง | E13: 245 | F13: 48 | G13: 10 | H13: 2 | I13: อาหารเช้า
B14: =วันที่เริ่มต้น+2 -> 2022-12-15 | C14: 12:00:00 | D14: อาหารกลางวัน | E14: 247 | F14: 11 | G14: 43 | H14: 5 | I14: สลัด
B15: =วันที่เริ่มต้น+2 -> 2022-12-15 | C15: 19:00:00 | D15: อาหารเย็น | E15: 456 | F15: 64 | G15: 32 | H15: 22 | I15: อาหารเย็น
B16: =วันที่เริ่มต้น+3 -> 2022-12-16 | C16: 07:00:00 | D16: ขนมปังปิ้ง | E16: 10 | F16: 10 | G16: 2 | H16: 10 | I16: อาหารเช้า
B17: =วันที่เริ่มต้น+3 -> 2022-12-16 | C17: 10:00:00 | D17: กาแฟ | E17: 135 | F17: 12 | G17: 9 | H17: 6 | I17: ลาเต้
B18: =วันที่เริ่มต้น+3 -> 2022-12-16 | C18: 12:15:00 | D18: อาหารกลางวัน | E18: 184 | F18: 7 | G18: 5 | H18: 15 | I18: สลัด
B19: =วันที่เริ่มต้น+5 -> 2022-12-18 | C19: 19:00:00 | D19: อาหารเย็น | E19: 477 | F19: 62 | G19: 14 | H19: 21 | I19: อาหารเย็น

Sheet ออกกำลัง
B1: ออกกำลัง | F1: ควบคุมอาหาร | G1: เป้าหมาย
B2: =ชื่อเรื่องรอง -> บันทึกการควบคุมอาหารและการออกกำลังประจำวัน
B3: วันที่ | C3: ระยะเวลา (นาที) | D3: แคลอรี่ที่เผาผลาญ | E3: หมายเหตุ
B4: =วันที่เริ่มต้น+4 -> 2022-12-17 | C4: 30 | D4: 120 | E4: วิ่งบนลู่วิ่ง
B5: =B4+1 -> 2022-12-18 | C5: 60 | D5: 180 | E5: การเต้นแอโรบิกแบบแรงกระแทกต่ำ
B6: =B5+1 -> 2022-12-19 | C6: 60 | D6: 350 | E6: ออกกำลังกายอย่างเต็มที่
B7: 2022-12-20 | C7: 30 | D7: 150 | E7: วิ่งบนลู่วิ่ง
B8: 2022-12-21 | C8: 25 | D8: 125 | E8: วิ่ง
B9: 2022-12-22 | C9: 20 | D9: 285 | E9: วิ่งบนลู่วิ่ง
B10: 2022-12-23 | C10: 40 | D10: 205 | E10: วิ่ง
B11: 2022-12-24 | C11: 30 | D11: 335 | E11: วิ่ง
B12: 2022-12-25 | C12: 40 | D12: 175 | E12: วิ่ง
B13: 2022-12-26 | C13: 45 | D13: 325 | E13: วิ่งบนลู่วิ่ง
B14: 2022-12-27 | C14: 40 | D14: 270 | E14: วิ่ง
B15: 2022-12-28 | C15: 20 | D15: 295 | E15: วิ่งบนลู่วิ่ง
B16: 2022-12-29 | C16: 45 | D16: 350 | E16: วิ่ง
B17: 2022-12-30 | C17: 35 | D17: 320 | E17: วิ่ง
B18: 2022-12-31 | C18: 40 | D18: 290 | E18: วิ่ง
B19: =B18+1 -> 2023-01-01 | C19: 25 | D19: 265 | E19: วิ่งบนลู่วิ่ง
B20: 2023-01-02 | C20: 20 | D20: 195 | E20: วิ่ง

Sheet การคำนวณแผนภูมิ (hidden)
B2: ข้อมูลแผนภูมิวิเคราะห์การควบคุมอาหาร
B4: แถวเริ่มต้น | C4: =ROW(ควบคุมอาหาร[[#Headers],[วันที่]])+1 -> 4 | D4: วันที่ | E4: วัน | F4: ไขมัน | G4: โปรตีน | H4: คาร์โบไฮเดรต | I4: แคลอรี่ | J4: หมายเลข
B5: รายการควบคุมอาหารสุดท้าย | C5: =MATCH(9.99E+307,ควบคุมอาหาร[วันที่])+แถวเริ่มต้นควบคุมอาหาร-1 -> 19 | D5: =IFERROR(IF(INDEX(ควบคุมอาหาร[],ควบคุมอาหารวันสุดท้าย-แถวเริ่มต้นควบคุมอาหาร-J5,1)<>"",INDEX(ควบคุมอาหาร[],ควบคุมอาหารวันสุดท้าย-แถวเริ่มต้นควบคุมอาหาร-J5,1),""),"") -> 2022-12-13 | E5: =UPPER(TEXT(D5,"DDD")) -> อ. | F5: =IFERROR((IF(INDEX(ควบคุมอาหาร[],ควบคุมอาหารวันสุดท้าย-แถวเริ่มต้นควบคุมอาหาร-J5,1)<>"",INDEX(ควบคุมอาหาร[],ควบคุมอาหารวันสุดท้าย-แถวเริ่มต้นควบคุมอาหาร-J5,7),NA())),NA()) -> 3.5 | G5: =IFERROR((IF(INDEX(ควบคุมอาหาร[],ควบคุมอาหารวันสุดท้าย-แถวเริ่มต้นควบคุมอาหาร-J5,1)<>"",INDEX(ควบคุมอาหาร[],ควบคุมอาหารวันสุดท้าย-แถวเริ่มต้นควบคุมอาหาร-J5,6),NA())),NA()) -> 18 | H5: =IFERROR((IF(INDEX(ควบคุมอาหาร[],ควบคุมอาหารวันสุดท้าย-แถวเริ่มต้นควบคุมอาหาร-J5,1)<>"",INDEX(ควบคุมอาหาร[],ควบคุมอาหารวันสุดท้าย-แถวเริ่มต้นควบคุมอาหาร-J5,5),NA())),NA()) -> 46 | I5: =IFERROR((IF(INDEX(ควบคุมอาหาร[],ควบคุมอาหารวันสุดท้าย-แถวเริ่มต้นควบคุมอาหาร-J5,1)<>"",INDEX(ควบคุมอาหาร[],ควบคุมอาหารวันสุดท้าย-แถวเริ่มต้นควบคุมอาหาร-J5,4),NA())),NA()) -> 283 | J5: 12
D6: =IFERROR(IF(INDEX(ควบคุมอาหาร[],ควบคุมอาหารวันสุดท้าย-แถวเริ่มต้นควบคุมอาหาร-J6,1)<>"",INDEX(ควบคุมอาหาร[],ควบคุมอาหารวันสุดท้าย-แถวเริ่มต้นควบคุมอาหาร-J6,1),""),"") -> 2022-12-13 | E6: อ. | F6: =IFERROR((IF(INDEX(ควบคุมอาหาร[],ควบคุมอาหารวันสุดท้าย-แถวเริ่มต้นควบคุมอาหาร-J6,1)<>"",INDEX(ควบคุมอาหาร[],ควบคุมอาหารวันสุดท้าย-แถวเริ่มต้นควบคุมอาหาร-J6,7),NA())),NA()) -> 25 | G6: =IFERROR((IF(INDEX(ควบคุมอาหาร[],ควบคุมอาหารวันสุดท้าย-แถวเริ่มต้นควบคุมอาหาร-J6,1)<>"",INDEX(ควบคุมอาหาร[],ควบคุมอาหารวันสุดท้าย-แถวเริ่มต้นควบคุมอาหาร-J6,6),NA())),NA()) -> 35 | H6: =IFERROR((IF(INDEX(ควบคุมอาหาร[],ควบคุมอาหารวันสุดท้าย-แถวเริ่มต้นควบคุมอาหาร-J6,1)<>"",INDEX(ควบคุมอาหาร[],ควบคุมอาหารวันสุดท้าย-แถวเริ่มต้นควบคุมอาหาร-J6,5),NA())),NA()) -> 42 | I6: =IFERROR((IF(INDEX(ควบคุมอาหาร[],ควบคุมอาหารวันสุดท้าย-แถวเริ่มต้นควบคุมอาหาร-J6,1)<>"",INDEX(ควบคุมอาหาร[],ควบคุมอาหารวันสุดท้าย-แถวเริ่มต้นควบคุมอาหาร-J6,4),NA())),NA()) -> 500 | J6: 11
D7: =IFERROR(IF(INDEX(ควบคุมอาหาร[],ควบคุมอาหารวันสุดท้าย-แถวเริ่มต้นควบคุมอาหาร-J7,1)<>"",INDEX(ควบคุมอาหาร[],ควบคุมอาหารวันสุดท้าย-แถวเริ่มต้นควบคุมอาหาร-J7,1),""),"") -> 2022-12-14 | E7: พ. | F7: =IFERROR((IF(INDEX(ควบคุมอาหาร[],ควบคุมอาหารวันสุดท้าย-แถวเริ่มต้นควบคุมอาหาร-J7,1)<>"",INDEX(ควบคุมอาหาร[],ควบคุมอาหารวันสุดท้าย-แถวเริ่มต้นควบคุมอาหาร-J7,7),NA())),NA()) -> 0 | G7: =IFERROR((IF(INDEX(ควบคุมอาหาร[],ควบคุมอาหารวันสุดท้าย-แถวเริ่มต้นควบคุมอาหาร-J7,1)<>"",INDEX(ควบคุมอาหาร[],ควบคุมอาหารวันสุดท้าย-แถวเริ่มต้นควบคุมอาหาร-J7,6),NA())),NA()) -> 0 | H7: =IFERROR((IF(INDEX(ควบคุมอาหาร[],ควบคุมอาหารวันสุดท้าย-แถวเริ่มต้นควบคุมอาหาร-J7,1)<>"",INDEX(ควบคุมอาหาร[],ควบคุมอาหารวันสุดท้าย-แถวเริ่มต้นควบคุมอาหาร-J7,5),NA())),NA()) -> 0 | I7: =IFERROR((IF(INDEX(ควบคุมอาหาร[],ควบคุมอาหารวันสุดท้าย-แถวเริ่มต้นควบคุมอาหาร-J7,1)<>"",INDEX(ควบคุมอาหาร[],ควบคุมอาหารวันสุดท้าย-แถวเริ่มต้นควบคุมอาหาร-J7,4),NA())),NA()) -> 1 | J7: 10
D8: =IFERROR(IF(INDEX(ควบคุมอาหาร[],ควบคุมอาหารวันสุดท้าย-แถวเริ่มต้นควบคุมอาหาร-J8,1)<>"",INDEX(ควบคุมอาหาร[],ควบคุมอาหารวันสุดท้าย-แถวเริ่มต้นควบคุมอาหาร-J8,1),""),"") -> 2022-12-14 | E8: พ. | F8: =IFERROR((IF(INDEX(ควบคุมอาหาร[],ควบคุมอาหารวันสุดท้าย-แถวเริ่มต้นควบคุมอาหาร-J8,1)<>"",INDEX(ควบคุมอาหาร[],ควบคุมอาหารวันสุดท้าย-แถวเริ่มต้นควบคุมอาหาร-J8,7),NA())),NA()) -> 10 | G8: =IFERROR((IF(INDEX(ควบคุมอาหาร[],ควบคุมอาหารวันสุดท้าย-แถวเริ่มต้นควบคุมอาหาร-J8,1)<>"",INDEX(ควบคุมอาหาร[],ควบคุมอาหารวันสุดท้าย-แถวเริ่มต้นควบคุมอาหาร-J8,6),NA())),NA()) -> 2 | H8: =IFERROR((IF(INDEX(ควบคุมอาหาร[],ควบคุมอาหารวันสุดท้าย-แถวเริ่มต้นควบคุมอาหาร-J8,1)<>"",INDEX(ควบคุมอาหาร[],ควบคุมอาหารวันสุดท้าย-แถวเริ่มต้นควบคุมอาหาร-J8,5),NA())),NA()) -> 10 | I8: =IFERROR((IF(INDEX(ควบคุมอาหาร[],ควบคุมอาหารวันสุดท้าย-แถวเริ่มต้นควบคุมอาหาร-J8,1)<>"",INDEX(ควบคุมอาหาร[],ควบคุมอาหารวันสุดท้าย-แถวเริ่มต้นควบคุมอาหาร-J8,4),NA())),NA()) -> 10 | J8: 9
D9: =IFERROR(IF(INDEX(ควบคุมอาหาร[],ควบคุมอาหารวันสุดท้าย-แถวเริ่มต้นควบคุมอาหาร-J9,1)<>"",INDEX(ควบคุมอาหาร[],ควบคุมอาหารวันสุดท้าย-แถวเริ่มต้นควบคุมอาหาร-J9,1),""),"") -> 2022-12-14 | E9: พ. | F9: =IFERROR((IF(INDEX(ควบคุมอาหาร[],ควบคุมอาหารวันสุดท้าย-แถวเริ่มต้นควบคุมอาหาร-J9,1)<>"",INDEX(ควบคุมอาหาร[],ควบคุมอาหารวันสุดท้าย-แถวเริ่มต้นควบคุมอาหาร-J9,7),NA())),NA()) -> 8 | G9: =IFERROR((IF(INDEX(ควบคุมอาหาร[],ควบคุมอาหารวันสุดท้าย-แถวเริ่มต้นควบคุมอาหาร-J9,1)<>"",INDEX(ควบคุมอาหาร[],ควบคุมอาหารวันสุดท้าย-แถวเริ่มต้นควบคุมอาหาร-J9,6),NA())),NA()) -> 3 | H9: =IFERROR((IF(INDEX(ควบคุมอาหาร[],ควบคุมอาหารวันสุดท้าย-แถวเริ่มต้นควบคุมอาหาร-J9,1)<>"",INDEX(ควบคุมอาหาร[],ควบคุมอาหารวันสุดท้าย-แถวเริ่มต้นควบคุมอาหาร-J9,5),NA())),NA()) -> 26 | I9: =IFERROR((IF(INDEX(ควบคุมอาหาร[],ควบคุมอาหารวันสุดท้าย-แถวเริ่มต้นควบคุมอาหาร-J9,1)<>"",INDEX(ควบคุมอาหาร[],ควบคุมอาหารวันสุดท้าย-แถวเริ่มต้นควบคุมอาหาร-J9,4),NA())),NA()) -> 189 | J9: 8
D10: =IFERROR(IF(INDEX(ควบคุมอาหาร[],ควบคุมอาหารวันสุดท้าย-แถวเริ่มต้นควบคุมอาหาร-J10,1)<>"",INDEX(ควบคุมอาหาร[],ควบคุมอาหารวันสุดท้าย-แถวเริ่มต้นควบคุมอาหาร-J10,1),""),"") -> 2022-12-14 | E10: พ. | F10: =IFERROR((IF(INDEX(ควบคุมอาหาร[],ควบคุมอาหารวันสุดท้าย-แถวเริ่มต้นควบคุมอาหาร-J10,1)<>"",INDEX(ควบคุมอาหาร[],ควบคุมอาหารวันสุดท้าย-แถวเริ่มต้นควบคุมอาหาร-J10,7),NA())),NA()) -> 21 | G10: =IFERROR((IF(INDEX(ควบคุมอาหาร[],ควบคุมอาหารวันสุดท้าย-แถวเริ่มต้นควบคุมอาหาร-J10,1)<>"",INDEX(ควบคุมอาหาร[],ควบคุมอาหารวันสุดท้าย-แถวเริ่มต้นควบคุมอาหาร-J10,6),NA())),NA()) -> 13.5 | H10: =IFERROR((IF(INDEX(ควบคุมอาหาร[],ควบคุมอาหารวันสุดท้าย-แถวเริ่มต้นควบคุมอาหาร-J10,1)<>"",INDEX(ควบคุมอาหาร[],ควบคุมอาหารวันสุดท้าย-แถวเริ่มต้นควบคุมอาหาร-J10,5),NA())),NA()) -> 62 | I10: =IFERROR((IF(INDEX(ควบคุมอาหาร[],ควบคุมอาหารวันสุดท้าย-แถวเริ่มต้นควบคุมอาหาร-J10,1)<>"",INDEX(ควบคุมอาหาร[],ควบคุมอาหารวันสุดท้าย-แถวเริ่มต้นควบคุมอาหาร-J10,4),NA())),NA()) -> 477 | J10: 7
D11: =IFERROR(IF(INDEX(ควบคุมอาหาร[],ควบคุมอาหารวันสุดท้าย-แถวเริ่มต้นควบคุมอาหาร-J11,1)<>"",INDEX(ควบคุมอาหาร[],ควบคุมอาหารวันสุดท้าย-แถวเริ่มต้นควบคุมอาหาร-J11,1),""),"") -> 2022-12-15 | E11: พฤ. | F11: =IFERROR((IF(INDEX(ควบคุมอาหาร[],ควบคุมอาหารวันสุดท้าย-แถวเริ่มต้นควบคุมอาหาร-J11,1)<>"",INDEX(ควบคุมอาหาร[],ควบคุมอาหารวันสุดท้าย-แถวเริ่มต้นควบคุมอาหาร-J11,7),NA())),NA()) -> 0 | G11: =IFERROR((IF(INDEX(ควบคุมอาหาร[],ควบคุมอาหารวันสุดท้าย-แถวเริ่มต้นควบคุมอาหาร-J11,1)<>"",INDEX(ควบคุมอาหาร[],ควบคุมอาหารวันสุดท้าย-แถวเริ่มต้นควบคุมอาหาร-J11,6),NA())),NA()) -> 0 | H11: =IFERROR((IF(INDEX(ควบคุมอาหาร[],ควบคุมอาหารวันสุดท้าย-แถวเริ่มต้นควบคุมอาหาร-J11,1)<>"",INDEX(ควบคุมอาหาร[],ควบคุมอาหารวันสุดท้าย-แถวเริ่มต้นควบคุมอาหาร-J11,5),NA())),NA()) -> 0 | I11: =IFERROR((IF(INDEX(ควบคุมอาหาร[],ควบคุมอาหารวันสุดท้าย-แถวเริ่มต้นควบคุมอาหาร-J11,1)<>"",INDEX(ควบคุมอาหาร[],ควบคุมอาหารวันสุดท้าย-แถวเริ่มต้นควบคุมอาหาร-J11,4),NA())),NA()) -> 1 | J11: 6
D12: =IFERROR(IF(INDEX(ควบคุมอาหาร[],ควบคุมอาหารวันสุดท้าย-แถวเริ่มต้นควบคุมอาหาร-J12,1)<>"",INDEX(ควบคุมอาหาร[],ควบคุมอาหารวันสุดท้าย-แถวเริ่มต้นควบคุมอาหาร-J12,1),""),"") -> 2022-12-15 | E12: พฤ. | F12: =IFERROR((IF(INDEX(ควบคุมอาหาร[],ควบคุมอาหารวันสุดท้าย-แถวเริ่มต้นควบคุมอาหาร-J12,1)<>"",INDEX(ควบคุมอาหาร[],ควบคุมอาหารวันสุดท้าย-แถวเริ่มต้นควบคุมอาหาร-J12,7),NA())),NA()) -> 1.5 | G12: =IFERROR((IF(INDEX(ควบคุมอาหาร[],ควบคุมอาหารวันสุดท้าย-แถวเริ่มต้นควบคุมอาหาร-J12,1)<>"",INDEX(ควบคุมอาหาร[],ควบคุมอาหารวันสุดท้าย-แถวเริ่มต้นควบคุมอาหาร-J12,6),NA())),NA()) -> 10 | H12: =IFERROR((IF(INDEX(ควบคุมอาหาร[],ควบคุมอาหารวันสุดท้าย-แถวเริ่มต้นควบคุมอาหาร-J12,1)<>"",INDEX(ควบคุมอาหาร[],ควบคุมอาหารวันสุดท้าย-แถวเริ่มต้นควบคุมอาหาร-J12,5),NA())),NA()) -> 48 | I12: =IFERROR((IF(INDEX(ควบคุมอาหาร[],ควบคุมอาหารวันสุดท้าย-แถวเริ่มต้นควบคุมอาหาร-J12,1)<>"",INDEX(ควบคุมอาหาร[],ควบคุมอาหารวันสุดท้าย-แถวเริ่มต้นควบคุมอาหาร-J12,4),NA())),NA()) -> 245 | J12: 5
D13: =IFERROR(IF(INDEX(ควบคุมอาหาร[],ควบคุมอาหารวันสุดท้าย-แถวเริ่มต้นควบคุมอาหาร-J13,1)<>"",INDEX(ควบคุมอาหาร[],ควบคุมอาหารวันสุดท้าย-แถวเริ่มต้นควบคุมอาหาร-J13,1),""),"") -> 2022-12-15 | E13: พฤ. | F13: =IFERROR((IF(INDEX(ควบคุมอาหาร[],ควบคุมอาหารวันสุดท้าย-แถวเริ่มต้นควบคุมอาหาร-J13,1)<>"",INDEX(ควบคุมอาหาร[],ควบคุมอาหารวันสุดท้าย-แถวเริ่มต้นควบคุมอาหาร-J13,7),NA())),NA()) -> 5 | G13: =IFERROR((IF(INDEX(ควบคุมอาหาร[],ควบคุมอาหารวันสุดท้าย-แถวเริ่มต้นควบคุมอาหาร-J13,1)<>"",INDEX(ควบคุมอาหาร[],ควบคุมอาหารวันสุดท้าย-แถวเริ่มต้นควบคุมอาหาร-J13,6),NA())),NA()) -> 43 | H13: =IFERROR((IF(INDEX(ควบคุมอาหาร[],ควบคุมอาหารวันสุดท้าย-แถวเริ่มต้นควบคุมอาหาร-J13,1)<>"",INDEX(ควบคุมอาหาร[],ควบคุมอาหารวันสุดท้าย-แถวเริ่มต้นควบคุมอาหาร-J13,5),NA())),NA()) -> 11 | I13: =IFERROR((IF(INDEX(ควบคุมอาหาร[],ควบคุมอาหารวันสุดท้าย-แถวเริ่มต้นควบคุมอาหาร-J13,1)<>"",INDEX(ควบคุมอาหาร[],ควบคุมอาหารวันสุดท้าย-แถวเริ่มต้นควบคุมอาหาร-J13,4),NA())),NA()) -> 247 | J13: 4
D14: =IFERROR(IF(INDEX(ควบคุมอาหาร[],ควบคุมอาหารวันสุดท้าย-แถวเริ่มต้นควบคุมอาหาร-J14,1)<>"",INDEX(ควบคุมอาหาร[],ควบคุมอาหารวันสุดท้าย-แถวเริ่มต้นควบคุมอาหาร-J14,1),""),"") -> 2022-12-15 | E14: พฤ. | F14: =IFERROR((IF(INDEX(ควบคุมอาหาร[],ควบคุมอาหารวันสุดท้าย-แถวเริ่มต้นควบคุมอาหาร-J14,1)<>"",INDEX(ควบคุมอาหาร[],ควบคุมอาหารวันสุดท้าย-แถวเริ่มต้นควบคุมอาหาร-J14,7),NA())),NA()) -> 22 | G14: =IFERROR((IF(INDEX(ควบคุมอาหาร[],ควบคุมอาหารวันสุดท้าย-แถวเริ่มต้นควบคุมอาหาร-J14,1)<>"",INDEX(ควบคุมอาหาร[],ควบคุมอาหารวันสุดท้าย-แถวเริ่มต้นควบคุมอาหาร-J14,6),NA())),NA()) -> 32 | H14: =IFERROR((IF(INDEX(ควบคุมอาหาร[],ควบคุมอาหารวันสุดท้าย-แถวเริ่มต้นควบคุมอาหาร-J14,1)<>"",INDEX(ควบคุมอาหาร[],ควบคุมอาหารวันสุดท้าย-แถวเริ่มต้นควบคุมอาหาร-J14,5),NA())),NA()) -> 64 | I14: =IFERROR((IF(INDEX(ควบคุมอาหาร[],ควบคุมอาหารวันสุดท้าย-แถวเริ่มต้นควบคุมอาหาร-J14,1)<>"",INDEX(ควบคุมอาหาร[],ควบคุมอาหารวันสุดท้าย-แถวเริ่มต้นควบคุมอาหาร-J14,4),NA())),NA()) -> 456 | J14: 3
D15: =IFERROR(IF(INDEX(ควบคุมอาหาร[],ควบคุมอาหารวันสุดท้าย-แถวเริ่มต้นควบคุมอาหาร-J15,1)<>"",INDEX(ควบคุมอาหาร[],ควบคุมอาหารวันสุดท้าย-แถวเริ่มต้นควบคุมอาหาร-J15,1),""),"") -> 2022-12-16 | E15: ศ. | F15: =IFERROR((IF(INDEX(ควบคุมอาหาร[],ควบคุมอาหารวันสุดท้าย-แถวเริ่มต้นควบคุมอาหาร-J15,1)<>"",INDEX(ควบคุมอาหาร[],ควบคุมอาหารวันสุดท้าย-แถวเริ่มต้นควบคุมอาหาร-J15,7),NA())),NA()) -> 10 | G15: =IFERROR((IF(INDEX(ควบคุมอาหาร[],ควบคุมอาหารวันสุดท้าย-แถวเริ่มต้นควบคุมอาหาร-J15,1)<>"",INDEX(ควบคุมอาหาร[],ควบคุมอาหารวันสุดท้าย-แถวเริ่มต้นควบคุมอาหาร-J15,6),NA())),NA()) -> 2 | H15: =IFERROR((IF(INDEX(ควบคุมอาหาร[],ควบคุมอาหารวันสุดท้าย-แถวเริ่มต้นควบคุมอาหาร-J15,1)<>"",INDEX(ควบคุมอาหาร[],ควบคุมอาหารวันสุดท้าย-แถวเริ่มต้นควบคุมอาหาร-J15,5),NA())),NA()) -> 10 | I15: =IFERROR((IF(INDEX(ควบคุมอาหาร[],ควบคุมอาหารวันสุดท้าย-แถวเริ่มต้นควบคุมอาหาร-J15,1)<>"",INDEX(ควบคุมอาหาร[],ควบคุมอาหารวันสุดท้าย-แถวเริ่มต้นควบคุมอาหาร-J15,4),NA())),NA()) -> 10 | J15: 2
D16: =IFERROR(IF(INDEX(ควบคุมอาหาร[],ควบคุมอาหารวันสุดท้าย-แถวเริ่มต้นควบคุมอาหาร-J16,1)<>"",INDEX(ควบคุมอาหาร[],ควบคุมอาหารวันสุดท้าย-แถวเริ่มต้นควบคุมอาหาร-J16,1),""),"") -> 2022-12-16 | E16: ศ. | F16: =IFERROR((IF(INDEX(ควบคุมอาหาร[],ควบคุมอาหารวันสุดท้าย-แถวเริ่มต้นควบคุมอาหาร-J16,1)<>"",INDEX(ควบคุมอาหาร[],ควบคุมอาหารวันสุดท้าย-แถวเริ่มต้นควบคุมอาหาร-J16,7),NA())),NA()) -> 5.51 | G16: =IFERROR((IF(INDEX(ควบคุมอาหาร[],ควบคุมอาหารวันสุดท้าย-แถวเริ่มต้นควบคุมอาหาร-J16,1)<>"",INDEX(ควบคุมอาหาร[],ควบคุมอาหารวันสุดท้าย-แถวเริ่มต้นควบคุมอาหาร-J16,6),NA())),NA()) -> 8.81 | H16: =IFERROR((IF(INDEX(ควบคุมอาหาร[],ควบคุมอาหารวันสุดท้าย-แถวเริ่มต้นควบคุมอาหาร-J16,1)<>"",INDEX(ควบคุมอาหาร[],ควบคุมอาหารวันสุดท้าย-แถวเริ่มต้นควบคุมอาหาร-J16,5),NA())),NA()) -> 12.36 | I16: =IFERROR((IF(INDEX(ควบคุมอาหาร[],ควบคุมอาหารวันสุดท้าย-แถวเริ่มต้นควบคุมอาหาร-J16,1)<>"",INDEX(ควบคุมอาหาร[],ควบคุมอาหารวันสุดท้าย-แถวเริ่มต้นควบคุมอาหาร-J16,4),NA())),NA()) -> 135 | J16: 1
D17: =IFERROR(IF(INDEX(ควบคุมอาหาร[],ควบคุมอาหารวันสุดท้าย-แถวเริ่มต้นควบคุมอาหาร-J17,1)<>"",INDEX(ควบคุมอาหาร[],ควบคุมอาหารวันสุดท้าย-แถวเริ่มต้นควบคุมอาหาร-J17,1),""),"") -> 2022-12-16 | E17: ศ. | F17: =IFERROR((IF(INDEX(ควบคุมอาหาร[],ควบคุมอาหารวันสุดท้าย-แถวเริ่มต้นควบคุมอาหาร-J17,1)<>"",INDEX(ควบคุมอาหาร[],ควบคุมอาหารวันสุดท้าย-แถวเริ่มต้นควบคุมอาหาร-J17,7),NA())),NA()) -> 15 | G17: =IFERROR((IF(INDEX(ควบคุมอาหาร[],ควบคุมอาหารวันสุดท้าย-แถวเริ่มต้นควบคุมอาหาร-J17,1)<>"",INDEX(ควบคุมอาหาร[],ควบคุมอาหารวันสุดท้าย-แถวเริ่มต้นควบคุมอาหาร-J17,6),NA())),NA()) -> 5.43 | H17: =IFERROR((IF(INDEX(ควบคุมอาหาร[],ควบคุมอาหารวันสุดท้าย-แถวเริ่มต้นควบคุมอาหาร-J17,1)<>"",INDEX(ควบคุมอาหาร[],ควบคุมอาหารวันสุดท้าย-แถวเริ่มต้นควบคุมอาหาร-J17,5),NA())),NA()) -> 7 | I17: =IFERROR((IF(INDEX(ควบคุมอาหาร[],ควบคุมอาหารวันสุดท้าย-แถวเริ่มต้นควบคุมอาหาร-J17,1)<>"",INDEX(ควบคุมอาหาร[],ควบคุมอาหารวันสุดท้าย-แถวเริ่มต้นควบคุมอาหาร-J17,4),NA())),NA()) -> 184 | J17: 0
D18: =IFERROR(IF(INDEX(ควบคุมอาหาร[],ควบคุมอาหารวันสุดท้าย-แถวเริ่มต้นควบคุมอาหาร-J18,1)<>"",INDEX(ควบคุมอาหาร[],ควบคุมอาหารวันสุดท้าย-แถวเริ่มต้นควบคุมอาหาร-J18,1),""),"") -> 2022-12-18 | E18: อา. | F18: =IFERROR((IF(INDEX(ควบคุมอาหาร[],ควบคุมอาหารวันสุดท้าย-แถวเริ่มต้นควบคุมอาหาร-J18,1)<>"",INDEX(ควบคุมอาหาร[],ควบคุมอาหารวันสุดท้าย-แถวเริ่มต้นควบคุมอาหาร-J18,7),NA())),NA()) -> 21 | G18: =IFERROR((IF(INDEX(ควบคุมอาหาร[],ควบคุมอาหารวันสุดท้าย-แถวเริ่มต้นควบคุมอาหาร-J18,1)<>"",INDEX(ควบคุมอาหาร[],ควบคุมอาหารวันสุดท้าย-แถวเริ่มต้นควบคุมอาหาร-J18,6),NA())),NA()) -> 13.5 | H18: =IFERROR((IF(INDEX(ควบคุมอาหาร[],ควบคุมอาหารวันสุดท้าย-แถวเริ่มต้นควบคุมอาหาร-J18,1)<>"",INDEX(ควบคุมอาหาร[],ควบคุมอาหารวันสุดท้าย-แถวเริ่มต้นควบคุมอาหาร-J18,5),NA())),NA()) -> 62 | I18: =IFERROR((IF(INDEX(ควบคุมอาหาร[],ควบคุมอาหารวันสุดท้าย-แถวเริ่มต้นควบคุมอาหาร-J18,1)<>"",INDEX(ควบคุมอาหาร[],ควบคุมอาหารวันสุดท้าย-แถวเริ่มต้นควบคุมอาหาร-J18,4),NA())),NA()) -> 477 | J18: -1
B20: ข้อมูลแผนภูมิวิเคราะห์การออกกำลัง
B22: แถวเริ่มต้น | C22: =ROW(ออกกำลัง[[#Headers],[วันที่]])+1 -> 4 | D22: วันที่ | E22: วัน | F22: ระยะเวลา (นาที) | G22: แคลอรี่ที่เผาผลาญ | H22: Num
B23: รายการออกกำลังล่าสุด | C23: =MATCH(9.99E+307,ออกกำลัง[วันที่])+แถวออกกำลังเริ่มต้น-1 -> 20 | D23: =IFERROR(IF(INDEX(ออกกำลัง[],ออกกำลังวันสุดท้าย-แถวออกกำลังเริ่มต้น-H23,1)<>"",INDEX(ออกกำลัง[],ออกกำลังวันสุดท้าย-แถวออกกำลังเริ่มต้น-H23,1)),"") -> 2023-01-02 | E23: =UPPER(TEXT(D23,"DDD")) -> จ. | F23: =IFERROR((IF(INDEX(ออกกำลัง[],ออกกำลังวันสุดท้าย-แถวออกกำลังเริ่มต้น-H23,1)<>"",INDEX(ออกกำลัง[],ออกกำลังวันสุดท้าย-แถวออกกำลังเริ่มต้น-H23,2),0)),0) -> 20 | G23: =IFERROR((IF(INDEX(ออกกำลัง[],ออกกำลังวันสุดท้าย-แถวออกกำลังเริ่มต้น-H23,2)<>"",INDEX(ออกกำลัง[],ออกกำลังวันสุดท้าย-แถวออกกำลังเริ่มต้น-H23,3),0)),0) -> 195 | H23: -1
D24: =IFERROR(IF(INDEX(ออกกำลัง[],ออกกำลังวันสุดท้าย-แถวออกกำลังเริ่มต้น-H24,1)<>"",INDEX(ออกกำลัง[],ออกกำลังวันสุดท้าย-แถวออกกำลังเริ่มต้น-H24,1)),"") -> 2023-01-01 | E24: อา. | F24: =IFERROR((IF(INDEX(ออกกำลัง[],ออกกำลังวันสุดท้าย-แถวออกกำลังเริ่มต้น-H24,1)<>"",INDEX(ออกกำลัง[],ออกกำลังวันสุดท้าย-แถวออกกำลังเริ่มต้น-H24,2),0)),0) -> 25 | G24: =IFERROR((IF(INDEX(ออกกำลัง[],ออกกำลังวันสุดท้าย-แถวออกกำลังเริ่มต้น-H24,2)<>"",INDEX(ออกกำลัง[],ออกกำลังวันสุดท้าย-แถวออกกำลังเริ่มต้น-H24,3),0)),0) -> 265 | H24: 0
D25: =IFERROR(IF(INDEX(ออกกำลัง[],ออกกำลังวันสุดท้าย-แถวออกกำลังเริ่มต้น-H25,1)<>"",INDEX(ออกกำลัง[],ออกกำลังวันสุดท้าย-แถวออกกำลังเริ่มต้น-H25,1)),"") -> 2022-12-31 | E25: ส. | F25: =IFERROR((IF(INDEX(ออกกำลัง[],ออกกำลังวันสุดท้าย-แถวออกกำลังเริ่มต้น-H25,1)<>"",INDEX(ออกกำลัง[],ออกกำลังวันสุดท้าย-แถวออกกำลังเริ่มต้น-H25,2),0)),0) -> 40 | G25: =IFERROR((IF(INDEX(ออกกำลัง[],ออกกำลังวันสุดท้าย-แถวออกกำลังเริ่มต้น-H25,2)<>"",INDEX(ออกกำลัง[],ออกกำลังวันสุดท้าย-แถวออกกำลังเริ่มต้น-H25,3),0)),0) -> 290 | H25: 1
D26: =IFERROR(IF(INDEX(ออกกำลัง[],ออกกำลังวันสุดท้าย-แถวออกกำลังเริ่มต้น-H26,1)<>"",INDEX(ออกกำลัง[],ออกกำลังวันสุดท้าย-แถวออกกำลังเริ่มต้น-H26,1)),"") -> 2022-12-30 | E26: ศ. | F26: =IFERROR((IF(INDEX(ออกกำลัง[],ออกกำลังวันสุดท้าย-แถวออกกำลังเริ่มต้น-H26,1)<>"",INDEX(ออกกำลัง[],ออกกำลังวันสุดท้าย-แถวออกกำลังเริ่มต้น-H26,2),0)),0) -> 35 | G26: =IFERROR((IF(INDEX(ออกกำลัง[],ออกกำลังวันสุดท้าย-แถวออกกำลังเริ่มต้น-H26,2)<>"",INDEX(ออกกำลัง[],ออกกำลังวันสุดท้าย-แถวออกกำลังเริ่มต้น-H26,3),0)),0) -> 320 | H26: 2
D27: =IFERROR(IF(INDEX(ออกกำลัง[],ออกกำลังวันสุดท้าย-แถวออกกำลังเริ่มต้น-H27,1)<>"",INDEX(ออกกำลัง[],ออกกำลังวันสุดท้าย-แถวออกกำลังเริ่มต้น-H27,1)),"") -> 2022-12-29 | E27: พฤ. | F27: =IFERROR((IF(INDEX(ออกกำลัง[],ออกกำลังวันสุดท้าย-แถวออกกำลังเริ่มต้น-H27,1)<>"",INDEX(ออกกำลัง[],ออกกำลังวันสุดท้าย-แถวออกกำลังเริ่มต้น-H27,2),0)),0) -> 45 | G27: =IFERROR((IF(INDEX(ออกกำลัง[],ออกกำลังวันสุดท้าย-แถวออกกำลังเริ่มต้น-H27,2)<>"",INDEX(ออกกำลัง[],ออกกำลังวันสุดท้าย-แถวออกกำลังเริ่มต้น-H27,3),0)),0) -> 350 | H27: 3
D28: =IFERROR(IF(INDEX(ออกกำลัง[],ออกกำลังวันสุดท้าย-แถวออกกำลังเริ่มต้น-H28,1)<>"",INDEX(ออกกำลัง[],ออกกำลังวันสุดท้าย-แถวออกกำลังเริ่มต้น-H28,1)),"") -> 2022-12-28 | E28: พ. | F28: =IFERROR((IF(INDEX(ออกกำลัง[],ออกกำลังวันสุดท้าย-แถวออกกำลังเริ่มต้น-H28,1)<>"",INDEX(ออกกำลัง[],ออกกำลังวันสุดท้าย-แถวออกกำลังเริ่มต้น-H28,2),0)),0) -> 20 | G28: =IFERROR((IF(INDEX(ออกกำลัง[],ออกกำลังวันสุดท้าย-แถวออกกำลังเริ่มต้น-H28,2)<>"",INDEX(ออกกำลัง[],ออกกำลังวันสุดท้าย-แถวออกกำลังเริ่มต้น-H28,3),0)),0) -> 295 | H28: 4
D29: =IFERROR(IF(INDEX(ออกกำลัง[],ออกกำลังวันสุดท้าย-แถวออกกำลังเริ่มต้น-H29,1)<>"",INDEX(ออกกำลัง[],ออกกำลังวันสุดท้าย-แถวออกกำลังเริ่มต้น-H29,1)),"") -> 2022-12-27 | E29: อ. | F29: =IFERROR((IF(INDEX(ออกกำลัง[],ออกกำลังวันสุดท้าย-แถวออกกำลังเริ่มต้น-H29,1)<>"",INDEX(ออกกำลัง[],ออกกำลังวันสุดท้าย-แถวออกกำลังเริ่มต้น-H29,2),0)),0) -> 40 | G29: =IFERROR((IF(INDEX(ออกกำลัง[],ออกกำลังวันสุดท้าย-แถวออกกำลังเริ่มต้น-H29,2)<>"",INDEX(ออกกำลัง[],ออกกำลังวันสุดท้าย-แถวออกกำลังเริ่มต้น-H29,3),0)),0) -> 270 | H29: 5
D30: =IFERROR(IF(INDEX(ออกกำลัง[],ออกกำลังวันสุดท้าย-แถวออกกำลังเริ่มต้น-H30,1)<>"",INDEX(ออกกำลัง[],ออกกำลังวันสุดท้าย-แถวออกกำลังเริ่มต้น-H30,1)),"") -> 2022-12-26 | E30: จ. | F30: =IFERROR((IF(INDEX(ออกกำลัง[],ออกกำลังวันสุดท้าย-แถวออกกำลังเริ่มต้น-H30,1)<>"",INDEX(ออกกำลัง[],ออกกำลังวันสุดท้าย-แถวออกกำลังเริ่มต้น-H30,2),0)),0) -> 45 | G30: =IFERROR((IF(INDEX(ออกกำลัง[],ออกกำลังวันสุดท้าย-แถวออกกำลังเริ่มต้น-H30,2)<>"",INDEX(ออกกำลัง[],ออกกำลังวันสุดท้าย-แถวออกกำลังเริ่มต้น-H30,3),0)),0) -> 325 | H30: 6
D31: =IFERROR(IF(INDEX(ออกกำลัง[],ออกกำลังวันสุดท้าย-แถวออกกำลังเริ่มต้น-H31,1)<>"",INDEX(ออกกำลัง[],ออกกำลังวันสุดท้าย-แถวออกกำลังเริ่มต้น-H31,1)),"") -> 2022-12-25 | E31: อา. | F31: =IFERROR((IF(INDEX(ออกกำลัง[],ออกกำลังวันสุดท้าย-แถวออกกำลังเริ่มต้น-H31,1)<>"",INDEX(ออกกำลัง[],ออกกำลังวันสุดท้าย-แถวออกกำลังเริ่มต้น-H31,2),0)),0) -> 40 | G31: =IFERROR((IF(INDEX(ออกกำลัง[],ออกกำลังวันสุดท้าย-แถวออกกำลังเริ่มต้น-H31,2)<>"",INDEX(ออกกำลัง[],ออกกำลังวันสุดท้าย-แถวออกกำลังเริ่มต้น-H31,3),0)),0) -> 175 | H31: 7
D32: =IFERROR(IF(INDEX(ออกกำลัง[],ออกกำลังวันสุดท้าย-แถวออกกำลังเริ่มต้น-H32,1)<>"",INDEX(ออกกำลัง[],ออกกำลังวันสุดท้าย-แถวออกกำลังเริ่มต้น-H32,1)),"") -> 2022-12-24 | E32: ส. | F32: =IFERROR((IF(INDEX(ออกกำลัง[],ออกกำลังวันสุดท้าย-แถวออกกำลังเริ่มต้น-H32,1)<>"",INDEX(ออกกำลัง[],ออกกำลังวันสุดท้าย-แถวออกกำลังเริ่มต้น-H32,2),0)),0) -> 30 | G32: =IFERROR((IF(INDEX(ออกกำลัง[],ออกกำลังวันสุดท้าย-แถวออกกำลังเริ่มต้น-H32,2)<>"",INDEX(ออกกำลัง[],ออกกำลังวันสุดท้าย-แถวออกกำลังเริ่มต้น-H32,3),0)),0) -> 335 | H32: 8
D33: =IFERROR(IF(INDEX(ออกกำลัง[],ออกกำลังวันสุดท้าย-แถวออกกำลังเริ่มต้น-H33,1)<>"",INDEX(ออกกำลัง[],ออกกำลังวันสุดท้าย-แถวออกกำลังเริ่มต้น-H33,1)),"") -> 2022-12-23 | E33: ศ. | F33: =IFERROR((IF(INDEX(ออกกำลัง[],ออกกำลังวันสุดท้าย-แถวออกกำลังเริ่มต้น-H33,1)<>"",INDEX(ออกกำลัง[],ออกกำลังวันสุดท้าย-แถวออกกำลังเริ่มต้น-H33,2),0)),0) -> 40 | G33: =IFERROR((IF(INDEX(ออกกำลัง[],ออกกำลังวันสุดท้าย-แถวออกกำลังเริ่มต้น-H33,2)<>"",INDEX(ออกกำลัง[],ออกกำลังวันสุดท้าย-แถวออกกำลังเริ่มต้น-H33,3),0)),0) -> 205 | H33: 9
D34: =IFERROR(IF(INDEX(ออกกำลัง[],ออกกำลังวันสุดท้าย-แถวออกกำลังเริ่มต้น-H34,1)<>"",INDEX(ออกกำลัง[],ออกกำลังวันสุดท้าย-แถวออกกำลังเริ่มต้น-H34,1)),"") -> 2022-12-22 | E34: พฤ. | F34: =IFERROR((IF(INDEX(ออกกำลัง[],ออกกำลังวันสุดท้าย-แถวออกกำลังเริ่มต้น-H34,1)<>"",INDEX(ออกกำลัง[],ออกกำลังวันสุดท้าย-แถวออกกำลังเริ่มต้น-H34,2),0)),0) -> 20 | G34: =IFERROR((IF(INDEX(ออกกำลัง[],ออกกำลังวันสุดท้าย-แถวออกกำลังเริ่มต้น-H34,2)<>"",INDEX(ออกกำลัง[],ออกกำลังวันสุดท้าย-แถวออกกำลังเริ่มต้น-H34,3),0)),0) -> 285 | H34: 10
D35: =IFERROR(IF(INDEX(ออกกำลัง[],ออกกำลังวันสุดท้าย-แถวออกกำลังเริ่มต้น-H35,1)<>"",INDEX(ออกกำลัง[],ออกกำลังวันสุดท้าย-แถวออกกำลังเริ่มต้น-H35,1)),"") -> 2022-12-21 | E35: พ. | F35: =IFERROR((IF(INDEX(ออกกำลัง[],ออกกำลังวันสุดท้าย-แถวออกกำลังเริ่มต้น-H35,1)<>"",INDEX(ออกกำลัง[],ออกกำลังวันสุดท้าย-แถวออกกำลังเริ่มต้น-H35,2),0)),0) -> 25 | G35: =IFERROR((IF(INDEX(ออกกำลัง[],ออกกำลังวันสุดท้าย-แถวออกกำลังเริ่มต้น-H35,2)<>"",INDEX(ออกกำลัง[],ออกกำลังวันสุดท้าย-แถวออกกำลังเริ่มต้น-H35,3),0)),0) -> 125 | H35: 11
D36: =IFERROR(IF(INDEX(ออกกำลัง[],ออกกำลังวันสุดท้าย-แถวออกกำลังเริ่มต้น-H36,1)<>"",INDEX(ออกกำลัง[],ออกกำลังวันสุดท้าย-แถวออกกำลังเริ่มต้น-H36,1)),"") -> 2022-12-20 | E36: อ. | F36: =IFERROR((IF(INDEX(ออกกำลัง[],ออกกำลังวันสุดท้าย-แถวออกกำลังเริ่มต้น-H36,1)<>"",INDEX(ออกกำลัง[],ออกกำลังวันสุดท้าย-แถวออกกำลังเริ่มต้น-H36,2),0)),0) -> 30 | G36: =IFERROR((IF(INDEX(ออกกำลัง[],ออกกำลังวันสุดท้าย-แถวออกกำลังเริ่มต้น-H36,2)<>"",INDEX(ออกกำลัง[],ออกกำลังวันสุดท้าย-แถวออกกำลังเริ่มต้น-H36,3),0)),0) -> 150 | H36: 12
